bitfinex/quotes_BTCUSD_20240831
["timestamp","ask_amount","ask_price","bid_price","bid_amount"]
[1725132047673,0.0273598,59111.0,59110.0,1.07189128]
[1725132047924,0.0273598,59111.0,59110.0,1.18752177]
[1725132048354,0.0273598,59111.0,59110.0,1.13671029]
[1725132053806,0.0273598,59111.0,59110.0,0.79835829]
[1725132054052,0.0273598,59111.0,59110.0,0.37750629]
[1725132054304,0.2608328,59111.0,59110.0,0.07973993]
[1725132054752,0.2608328,59111.0,59110.0,0.0288998]
[1725132054753,0.26840076,59111.0,59110.0,0.0288998]
[1725132055929,0.20410076,59111.0,59110.0,0.0288998]
[1725132056177,0.20410076,59111.0,59110.0,0.07973993]
[1725132058383,0.20410076,59111.0,59110.0,0.0288998]
[1725132058877,0.03492776,59111.0,59110.0,0.0288998]
[1725132062632,0.03492776,59111.0,59110.0,0.0933998]
[1725132062846,0.03492776,59111.0,59110.0,0.2625758]
[1725132063297,0.03492776,59111.0,59110.0,0.33887495]
[1725132066235,0.03492776,59111.0,59110.0,0.67722695]
[1725132066711,0.0273598,59111.0,59110.0,0.67722695]
[1725132067139,0.03570758,59111.0,59110.0,0.75462695]
[1725132067357,0.000818,59111.0,59110.0,0.75462695]
[1725132069134,0.00916578,59111.0,59110.0,0.75462695]
[1725132072131,0.03570646,59111.0,59110.0,0.75462695]
[1725132076958,0.03570646,59111.0,59110.0,0.75462983]
[1725132077866,0.03570646,59111.0,59110.0,0.87026032]
[1725132081466,0.03570646,59111.0,59110.0,0.41627783]
[1725132081709,0.03570646,59111.0,59110.0,0.27437783]
[1725132081937,0.09920646,59111.0,59110.0,0.27437994]
[1725132082129,0.03570646,59111.0,59110.0,0.27437994]
[1725132083729,0.20487946,59111.0,59110.0,0.0288998]
[1725132083953,0.51668478,59111.0,59110.0,0.07977112]
[1725132084174,0.85503078,59111.0,59110.0,0.07977112]
[1725132084633,0.85503078,59111.0,59110.0,0.06577112]
[1725132084875,0.85503078,59111.0,59110.0,0.0148998]
[1725132085116,0.85503078,59111.0,59110.0,0.0288998]
[1725132085346,0.85503078,59111.0,59110.0,0.0148998]
[1725132085795,0.85503078,59111.0,59110.0,0.0288998]
[1725132087363,0.8815732,59111.0,59110.0,0.0288998]
[1725132089473,0.70323442,59111.0,59110.0,0.0288998]
[1725132090127,0.87240742,59111.0,59110.0,0.0288998]
[1725132091024,0.845865,59111.0,59110.0,0.0288998]
[1725132093699,0.846683,59111.0,59110.0,0.0288998]
[1725132093908,0.508337,59111.0,59110.0,0.0288998]
[1725132100534,0.53487987,59111.0,59110.0,0.0288998]
[1725132101740,0.84276868,59111.0,59110.0,0.0288998]
[1725132101969,1.57230236,59111.0,59110.0,0.0288998]
[1725132102199,1.54575949,59111.0,59110.0,0.0288998]
[1725132103265,1.54575949,59111.0,59110.0,0.0008998]
[1725132103483,1.54575949,59111.0,59110.0,0.0038998]
[1725132103484,1.88410549,59111.0,59110.0,0.0038998]
[1725132103764,1.88410549,59111.0,59110.0,0.0068998]
[1725132103978,1.54575949,59111.0,59110.0,0.0038998]
[1725132104206,1.54575949,59111.0,59110.0,0.0018998]
[1725132104433,1.54575949,59111.0,59110.0,0.0028998]
[1725132104664,1.90710549,59111.0,59110.0,0.0028998]
[1725132106634,1.453129,59111.0,59110.0,0.0028998]
[1725132106848,1.59530614,59111.0,59110.0,0.0028998]
[1725132108449,1.93365214,59111.0,59110.0,0.0028998]
[1725132108674,1.59530614,59111.0,59110.0,0.0028998]
[1725132109505,1.93365214,59111.0,59110.0,0.0028998]
[1725132111996,1.59530614,59111.0,59110.0,0.0028998]
[1725132113062,1.93365214,59111.0,59110.0,0.0028998]
[1725132118064,1.56875949,59111.0,59110.0,0.0028998]
[1725132120715,1.285029,59111.0,59110.0,0.0028998]
[1725132121457,1.31157502,59111.0,59110.0,0.0028998]
[1725132124102,1.285029,59111.0,59110.0,0.0028998]
[1725132126465,1.29273516,59111.0,59110.0,0.0028998]
[1725132127306,1.31928108,59111.0,59110.0,0.0028998]
[1725132127955,1.29273516,59111.0,59110.0,0.0028998]
[1725132131954,1.8661805,59111.0,59110.0,0.0028998]
[1725132132877,1.38213516,59111.0,59110.0,0.0028998]
[1725132133550,1.72048116,59111.0,59110.0,0.0028998]
[1725132136864,1.65408116,59111.0,59110.0,0.0028998]
[1725132137084,1.69834362,59111.0,59110.0,0.0028998]
[1725132138621,1.69834362,59111.0,59110.0,0.0018998]
[1725132138840,1.69834362,59111.0,59110.0,0.0008998]
[1725132143544,1.75864362,59111.0,59110.0,0.0008998]
[1725132143771,1.83834362,59111.0,59110.0,0.0008998]
[1725132146771,1.75864362,59111.0,59110.0,0.0008998]
[1725132148314,1.73209682,59111.0,59110.0,0.0008998]
[1725132149691,1.67179682,59111.0,59110.0,0.0008998]
[1725132150381,1.64879682,59111.0,59110.0,0.0612998]
[1725132152364,1.31045082,59111.0,59110.0,0.0612998]
[1725132153231,1.64879682,59111.0,59110.0,0.0612998]
[1725132153906,1.31045082,59111.0,59110.0,0.0612998]
[1725132157617,1.33699693,59111.0,59110.0,0.0612998]
[1725132160882,1.31045082,59111.0,59110.0,0.0612998]
[1725132164199,1.33699637,59111.0,59110.0,0.0612998]
[1725132166931,1.31045082,59111.0,59110.0,0.0612998]
[1725132167134,1.31045082,59111.0,59110.0,0.0622998]
[1725132168196,1.28870219,59111.0,59110.0,0.0622998]
[1725132168409,1.28870219,59111.0,59110.0,0.0632998]
[1725132171635,1.28870219,59111.0,59110.0,0.1412998]
[1725132172271,0.95035619,59111.0,59110.0,0.1412998]
[1725132172535,0.19459482,59111.0,59110.0,0.1402998]
[1725132172752,0.02750945,59111.0,59110.0,0.1412998]
[1725132173199,0.02750945,59111.0,59110.0,0.1402998]
[1725132173416,0.0540511,59111.0,59110.0,0.1442998]
[1725132173635,0.03633544,59111.0,59110.0,0.1402998]
[1725132174115,0.03633544,59111.0,59110.0,0.1392998]
[1725132174323,0.03633544,59111.0,59110.0,0.1452998]
[1725132174784,0.00979379,59111.0,59110.0,0.1452998]
[1725132175012,0.01061179,59111.0,59110.0,0.1512998]
[1725132175481,0.17978479,59111.0,59110.0,0.1512998]
[1725132176627,0.20632704,59111.0,59110.0,0.1512998]
[1725132178026,0.17978479,59111.0,59110.0,0.1512998]
[1725132180783,0.85647679,59111.0,59110.0,0.1512998]
[1725132184279,0.88301919,59111.0,59110.0,0.1512998]
[1725132184711,1.22136519,59111.0,59110.0,0.1512998]
[1725132187099,1.22136519,59111.0,59110.0,0.0128998]
[1725132188038,1.19482279,59111.0,59110.0,0.0128998]
[1725132191238,1.2213663,59111.0,59110.0,0.0128998]
[1725132194164,1.19482279,59111.0,59110.0,0.0128998]
[1725132197332,1.22136636,59111.0,59110.0,0.0128998]
[1725132200913,1.19482279,59111.0,59110.0,0.0128998]
[1725132204350,1.22136636,59111.0,59110.0,0.0128998]
[1725132207059,1.19482279,59111.0,59110.0,0.0128998]
[1725132207492,1.19482279,59111.0,59110.0,0.0755998]
[1725132209744,0.85647679,59111.0,59110.0,0.1533998]
[1725132209966,0.85647679,59111.0,59110.0,0.26903029]
[1725132209967,0.51813079,59111.0,59110.0,0.26903029]
[1725132210175,0.17978479,59111.0,59110.0,0.26903029]
[1725132210608,0.01061179,59111.0,59110.0,0.26903029]
[1725132212140,0.01061179,59111.0,59110.0,0.77655829]
[1725132213042,0.01061179,59111.0,59110.0,0.43820629]
[1725132213474,0.03715341,59111.0,59110.0,0.43820629]
[1725132218173,0.01061179,59111.0,59110.0,0.43820629]
[1725132222097,0.01061179,59111.0,59110.0,0.26903029]
[1725132223196,0.01061179,59111.0,59110.0,0.43820629]
[1725132223418,0.17978479,59111.0,59110.0,0.1533998]
[1725132223646,0.17978479,59111.0,59110.0,0.0755998]
[1725132224494,0.20632657,59111.0,59110.0,0.0755998]
[1725132226053,0.20632657,59111.0,59110.0,0.0695998]
[1725132226730,0.20632657,59111.0,59110.0,0.0835998]
[1725132226939,0.20632657,59111.0,59110.0,0.0775998]
[1725132228353,0.17978479,59111.0,59110.0,0.0915998]
[1725132230299,0.51813079,59111.0,59110.0,0.0915998]
[1725132231339,0.85647679,59111.0,59110.0,0.0288998]
[1725132233509,0.85647679,59111.0,59110.0,0.0932998]
[1725132235605,0.85647679,59111.0,59110.0,0.0288998]
[1725132236066,0.88301901,59111.0,59110.0,0.0288998]
[1725132237946,0.85647679,59111.0,59110.0,0.0288998]
[1725132244388,0.88301962,59111.0,59110.0,0.0288998]
[1725132245433,0.87322583,59111.0,59110.0,0.0288998]
[1725132245647,0.71070535,59111.0,59110.0,0.0288998]
[1725132246493,0.87987835,59111.0,59110.0,0.0288998]
[1725132247126,0.85333552,59111.0,59110.0,0.0288998]
[1725132250633,0.8798785,59111.0,59110.0,0.0288998]
[1725132253306,0.87240798,59111.0,59110.0,0.0288998]
[1725132253540,0.87322598,59111.0,59110.0,0.0288998]
[1725132255543,1.31157198,59111.0,59110.0,0.0288998]
[1725132255773,1.37477198,59111.0,59110.0,0.0288998]
[1725132255984,1.31157198,59111.0,59110.0,0.0288998]
[1725132257990,1.285029,59111.0,59110.0,0.0288998]
[1725132259589,1.30615611,59111.0,59110.0,0.0288998]
[1725132262483,1.30615611,59111.0,59110.0,0.0148998]
[1725132262891,1.30615611,59111.0,59110.0,0.0008998]
[1725132263313,1.30615611,59111.0,59110.0,0.0028998]
[1725132263728,1.30615611,59111.0,59110.0,0.0048998]
[1725132264565,1.30615611,59111.0,59110.0,0.0028998]
[1725132265007,1.30615611,59111.0,59110.0,0.0048998]
[1725132275415,1.30411995,59111.0,59110.0,0.0048998]
[1725132276661,1.33066467,59111.0,59110.0,0.0048998]
[1725132278232,1.30411995,59111.0,59110.0,0.0048998]
[1725132281414,1.33066467,59111.0,59110.0,0.0048998]
[1725132284263,1.30411995,59111.0,59110.0,0.0048998]
[1725132286821,1.93692259,59111.0,59110.0,0.0048998]
[1725132287028,1.95463825,59111.0,59110.0,0.0048998]
[1725132287239,1.95463825,59111.0,59110.0,0.0028998]
[1725132287453,1.80538161,59111.0,59110.0,0.0038998]
[1725132287672,1.80538161,59111.0,59110.0,0.0018998]
[1725132287673,1.8319278,59111.0,59110.0,0.0018998]
[1725132288043,1.80538161,59111.0,59110.0,0.0008998]
[1725132288814,1.72318161,59111.0,59110.0,0.0008998]
[1725132289013,1.72418161,59111.0,59110.0,0.0008998]
[1725132289461,1.66218161,59111.0,59110.0,0.0008998]
[1725132290089,1.66318161,59111.0,59110.0,0.0008998]
[1725132290967,1.66521777,59111.0,59110.0,0.0008998]
[1725132291379,1.69176409,59111.0,59110.0,0.0008998]
[1725132294084,1.66521777,59111.0,59110.0,0.0008998]
[1725132297410,1.69176424,59111.0,59110.0,0.0008998]
[1725132300927,1.66521777,59111.0,59110.0,0.0008998]
[1725132301546,0.169187,59106.0,59105.0,0.04425558]
[1725132301711,0.607562,59106.0,59105.0,0.04425558]
[1725132302107,1.284312,59106.0,59105.0,0.04425558]
[1725132302957,1.284312,59106.0,59105.0,0.04625558]
[1725132304077,1.284312,59106.0,59105.0,0.04825558]
[1725132304277,1.31085873,59106.0,59105.0,0.04825558]
[1725132305580,0.97248373,59106.0,59105.0,0.12725558]
[1725132307712,0.63410873,59106.0,59105.0,0.12725558]
[1725132311675,0.63410873,59106.0,59105.0,0.12815538]
[1725132311899,0.63492673,59106.0,59105.0,0.12815538]
[1725132316453,0.64289759,59106.0,59105.0,0.12815538]
[1725132318220,0.27797586,59106.0,59105.0,0.12815538]
[1725132318425,0.61635086,59106.0,59105.0,0.12815538]
[1725132320371,0.51635086,59106.0,59105.0,0.12815538]
[1725132320804,0.00878886,59106.0,59105.0,0.12815538]
[1725132321103,0.17797586,59106.0,59105.0,0.12815538]
[1725132321386,0.03533382,59106.0,59105.0,0.12815538]
[1725132322073,0.03533382,59106.0,59105.0,0.75135587]
[1725132322308,0.03533382,59106.0,59105.0,1.08973587]
[1725132322532,0.02736296,59106.0,59105.0,1.42811587]
[1725132323417,0.02736296,59106.0,59105.0,1.42411587]
[1725132323634,0.02736296,59106.0,59105.0,1.43811587]
[1725132323819,0.02736296,59106.0,59105.0,1.45211587]
[1725132327657,0.02736296,59106.0,59105.0,1.45411587]
[1725132328109,0.000818,59106.0,59105.0,1.45411587]
[1725132329673,0.000818,59106.0,59105.0,1.43511587]
[1725132330302,0.000818,59106.0,59105.0,1.44911587]
[1725132330511,0.000818,59106.0,59105.0,1.43511587]
[1725132330923,0.000818,59106.0,59105.0,1.44711587]
[1725132331341,0.02736029,59106.0,59105.0,1.44711587]
[1725132333055,0.02736029,59106.0,59105.0,0.77035587]
[1725132333283,0.19654729,59106.0,59105.0,0.14715538]
[1725132333717,0.17797486,59106.0,59105.0,0.14715538]
[1725132334613,0.17797486,59106.0,59105.0,0.06815538]
[1725132334824,0.17797486,59106.0,59105.0,0.0288998]
[1725132335031,0.51634986,59106.0,59105.0,0.0288998]
[1725132335250,0.17797486,59106.0,59105.0,0.0288998]
[1725132336914,0.20451883,59106.0,59105.0,0.0288998]
[1725132338379,0.17797486,59106.0,59105.0,0.0288998]
[1725132341724,0.20451863,59106.0,59105.0,0.0288998]
[1725132343696,0.03533163,59106.0,59105.0,0.0288998]
[1725132343918,0.20451863,59106.0,59105.0,0.0288998]
[1725132344148,0.03533163,59106.0,59105.0,0.0288998]
[1725132344393,0.00878786,59106.0,59105.0,0.0929998]
[1725132345060,0.00878786,59106.0,59105.0,0.1729998]
[1725132345280,0.00878786,59106.0,59105.0,0.3421898]
[1725132347546,0.000818,59106.0,59105.0,0.3421898]
[1725132347775,0.02736126,59106.0,59105.0,0.3421898]
[1725132347886,0.00818,59116.0,59105.0,0.3421898]
[1725132348158,0.169178,59110.0,59106.0,0.11563049]
[1725132348814,0.169178,59110.0,59106.0,0.28481649]
[1725132349226,0.169178,59110.0,59106.0,0.29881649]
[1725132349680,0.169178,59110.0,59106.0,0.31281649]
[1725132352813,0.169178,59110.0,59106.0,0.197186]
[1725132353049,0.402835,59113.0,59107.0,0.169184]
[1725132353278,0.169175,59111.0,59106.0,0.197187]
[1725132353506,0.169176,59110.0,59106.0,0.197187]
[1725132354164,0.169176,59110.0,59106.0,0.183187]
[1725132354389,0.169176,59110.0,59107.0,0.014]
[1725132354850,0.169176,59110.0,59106.0,0.183187]
[1725132355080,0.169176,59110.0,59106.0,0.169187]
[1725132355329,0.169176,59110.0,59106.0,0.183187]
[1725132355530,0.169179,59109.0,59106.0,0.014]
[1725132356016,0.169179,59109.0,59106.0,0.028]
[1725132357093,0.169179,59109.0,59106.0,0.014]
[1725132357311,0.1957222,59109.0,59106.0,0.014]
[1725132357758,0.169179,59109.0,59106.0,0.028]
[1725132360211,0.00906471,59108.0,59106.0,0.028]
[1725132361143,0.20479104,59108.0,59105.0,0.1449998]
[1725132361561,0.20479104,59108.0,59106.0,0.028]
[1725132362013,0.20479104,59108.0,59106.0,0.014]
[1725132362237,0.20479104,59108.0,59105.0,0.1449998]
[1725132362451,0.20479104,59108.0,59105.0,0.1589998]
[1725132362667,0.20479104,59108.0,59105.0,0.1729998]
[1725132362844,0.169185,59107.0,59105.0,0.1729998]
[1725132363445,0.17825171,59106.0,59105.0,0.0288998]
[1725132363651,0.51662671,59106.0,59105.0,0.0288998]
[1725132363929,0.51662671,59106.0,59105.0,0.0148998]
[1725132365984,0.85500171,59106.0,59105.0,0.0148998]
[1725132366689,0.85500171,59106.0,59105.0,0.0288998]
[1725132367259,0.88154604,59106.0,59105.0,0.0288998]
[1725132370169,0.70329433,59106.0,59105.0,0.0288998]
[1725132370409,0.87248133,59106.0,59105.0,0.0288998]
[1725132371028,0.845937,59106.0,59105.0,0.0288998]
[1725132374385,0.53410671,59106.0,59105.0,0.0288998]
[1725132377124,0.569562,59106.0,59105.0,0.0288998]
[1725132377331,0.907937,59106.0,59105.0,0.0288998]
[1725132378037,0.907937,59106.0,59105.0,0.0148998]
[1725132378258,0.907937,59106.0,59105.0,0.0008998]
[1725132378469,0.907937,59106.0,59105.0,0.0288998]
[1725132378990,0.907937,59106.0,59105.0,0.0148998]
[1725132379206,0.845937,59106.0,59105.0,0.0288998]
[1725132380319,0.87248303,59106.0,59105.0,0.0288998]
[1725132382757,0.87330103,59106.0,59105.0,0.0288998]
[1725132383843,0.846755,59106.0,59105.0,0.0288998]
[1725132386223,0.87330072,59106.0,59105.0,0.0288998]
[1725132388013,0.846755,59106.0,59105.0,0.0288998]
[1725132391341,0.87330089,59106.0,59105.0,0.0288998]
[1725132391539,0.89527264,59106.0,59105.0,0.0288998]
[1725132394640,1.23364764,59106.0,59105.0,0.0288998]
[1725132398067,1.20710175,59106.0,59105.0,0.0288998]
[1725132401258,1.23364811,59106.0,59105.0,0.0288998]
[1725132403228,1.33364811,59106.0,59105.0,0.0288998]
[1725132404110,0.946755,59106.0,59105.0,0.0288998]
[1725132404539,1.28513,59106.0,59105.0,0.0288998]
[1725132406022,0.946755,59106.0,59105.0,0.0288998]
[1725132406444,0.946755,59106.0,59105.0,0.0934998]
[1725132407288,0.97330135,59106.0,59105.0,0.0934998]
[1725132407922,0.946755,59106.0,59105.0,0.0934998]
[1725132408367,0.100818,59106.0,59105.0,0.28503029]
[1725132408599,0.000818,59106.0,59105.0,0.28503029]
[1725132408856,0.000818,59106.0,59105.0,0.79598369]
[1725132409811,0.000818,59106.0,59105.0,0.76798369]
[1725132410275,0.000818,59106.0,59105.0,0.79598369]
[1725132410931,0.000818,59106.0,59105.0,0.78198369]
[1725132411418,0.000818,59106.0,59105.0,0.76798369]
[1725132411627,0.000818,59106.0,59105.0,0.78198369]
[1725132412288,0.000818,59106.0,59105.0,0.79598369]
[1725132412941,0.000818,59106.0,59105.0,0.78198369]
[1725132413177,0.000818,59106.0,59105.0,0.79598369]
[1725132413621,0.000818,59106.0,59105.0,0.78198369]
[1725132414293,0.02736102,59106.0,59105.0,0.78198369]
[1725132414504,0.02736102,59106.0,59105.0,0.76798369]
[1725132414699,0.02736102,59106.0,59105.0,0.78198369]
[1725132415592,0.02736102,59106.0,59105.0,0.79598369]
[1725132415809,0.02736102,59106.0,59105.0,0.78198369]
[1725132416259,0.02736102,59106.0,59105.0,0.79598369]
[1725132416687,0.02736102,59106.0,59105.0,0.78198369]
[1725132416955,0.02736102,59106.0,59105.0,0.79598369]
[1725132417385,0.02736102,59106.0,59105.0,0.78198369]
[1725132418463,0.000818,59106.0,59105.0,0.78198369]
[1725132418879,0.000818,59106.0,59105.0,0.76798369]
[1725132419308,0.000818,59106.0,59105.0,0.79598369]
[1725132419740,0.000818,59106.0,59105.0,0.78198369]
[1725132420399,0.000818,59106.0,59105.0,0.79598369]
[1725132420649,0.000818,59106.0,59105.0,0.78198369]
[1725132421330,0.000818,59106.0,59105.0,0.76798369]
[1725132421553,0.000818,59106.0,59105.0,0.78198369]
[1725132421769,0.02736116,59106.0,59105.0,0.78198369]
[1725132422650,0.02736116,59106.0,59105.0,0.79598369]
[1725132422865,0.02736116,59106.0,59105.0,0.76798369]
[1725132423076,0.02736116,59106.0,59105.0,0.79598369]
[1725132423518,0.02736116,59106.0,59105.0,0.78198369]
[1725132423733,0.02736116,59106.0,59105.0,0.79598369]
[1725132426108,0.02736116,59106.0,59105.0,0.79260029]
[1725132426578,0.02736116,59106.0,59105.0,0.28503029]
[1725132431523,0.000818,59106.0,59105.0,0.28503029]
[1725132433489,0.438344,59112.0,59105.0,0.28503029]
[1725132433902,0.338357,59110.0,59105.0,0.28503029]
[1725132434115,0.16918,59109.0,59105.0,0.45422029]
[1725132434323,0.16918,59109.0,59105.0,0.3385898]
[1725132434774,0.19572373,59109.0,59105.0,0.3385898]
[1725132434997,0.19572373,59109.0,59105.0,0.3245898]
[1725132435237,0.19572373,59109.0,59105.0,0.3345898]
[1725132435668,0.19572373,59109.0,59105.0,0.3105898]
[1725132435903,0.19572373,59109.0,59105.0,0.3215898]
[1725132436104,0.19572373,59109.0,59105.0,0.3245898]
[1725132437185,0.19572373,59109.0,59105.0,0.3385898]
[1725132437394,0.19572373,59109.0,59105.0,0.3245898]
[1725132438013,0.19572373,59109.0,59105.0,0.3105898]
[1725132438439,0.19572373,59109.0,59105.0,0.3245898]
[1725132438892,0.19572373,59109.0,59105.0,0.3385898]
[1725132440274,0.19572373,59109.0,59105.0,0.1693998]
[1725132441181,0.169998,59109.0,59105.0,0.1693998]
[1725132444283,0.19654164,59109.0,59105.0,0.1693998]
[1725132449428,0.169187,59106.0,59105.0,0.0288998]
[1725132449659,0.845937,59106.0,59105.0,0.0288998]
[1725132450290,0.845937,59106.0,59105.0,0.0148998]
[1725132450722,0.845937,59106.0,59105.0,0.0008998]
[1725132450934,0.845937,59106.0,59105.0,0.0148998]
[1725132451567,0.845937,59106.0,59105.0,0.0288998]
[1725132453132,0.87248189,59106.0,59105.0,0.0288998]
[1725132458922,0.845937,59106.0,59105.0,0.0288998]
[1725132460741,0.67675,59106.0,59105.0,0.0288998]
[1725132461185,0.845937,59106.0,59105.0,0.0288998]
[1725132462313,0.87248215,59106.0,59105.0,0.0288998]
[1725132462725,0.53410715,59106.0,59105.0,0.0288998]
[1725132464313,0.53410715,59106.0,59105.0,0.0902998]
[1725132468232,0.507562,59106.0,59105.0,0.0902998]
[1725132469832,0.507562,59106.0,59105.0,0.0288998]
[1725132469833,1.428112,59106.0,59105.0,0.0288998]
[1725132470734,1.428112,59106.0,59105.0,0.0148998]
[1725132470959,1.83664532,59106.0,59105.0,0.0148998]
[1725132471170,1.789487,59106.0,59105.0,0.0028998]
[1725132471652,1.789487,59106.0,59105.0,0.0048998]
[1725132471854,1.97908707,59106.0,59105.0,0.0048998]
[1725132472068,1.97908707,59106.0,59105.0,0.0028998]
[1725132472293,2.10570587,59106.0,59105.0,0.0008998]
[1725132472510,2.10570587,59106.0,59105.0,0.0028998]
[1725132472511,2.10770587,59106.0,59105.0,0.0028998]
[1725132472993,2.10670587,59106.0,59105.0,0.0018998]
[1725132473206,1.81253543,59106.0,59105.0,0.0028998]
[1725132473701,1.83908637,59106.0,59105.0,0.0028998]
[1725132474347,1.9150009,59106.0,59105.0,0.0028998]
[1725132474770,1.96566941,59106.0,59105.0,0.0028998]
[1725132475202,1.96567079,59106.0,59105.0,0.0028998]
[1725132475419,1.88975488,59106.0,59105.0,0.0028998]
[1725132476266,1.83908637,59106.0,59105.0,0.0028998]
[1725132478327,1.83990437,59106.0,59105.0,0.0028998]
[1725132479658,1.95553486,59106.0,59105.0,0.0028998]
[1725132480313,1.61715986,59106.0,59105.0,0.0028998]
[1725132480551,1.53495986,59106.0,59105.0,0.0028998]
[1725132482096,1.87333486,59106.0,59105.0,0.0028998]
[1725132482513,1.53495986,59106.0,59105.0,0.0028998]
[1725132482735,1.87333486,59106.0,59105.0,0.0028998]
[1725132484569,2.1195865,59106.0,59105.0,0.0028998]
[1725132488723,2.09303556,59106.0,59105.0,0.0028998]
[1725132489621,2.43141056,59106.0,59105.0,0.0028998]
[1725132490929,2.43841056,59106.0,59105.0,0.0028998]
[1725132491877,2.46496206,59106.0,59105.0,0.0028998]
[1725132494716,2.43841056,59106.0,59105.0,0.0028998]
[1725132495362,2.96991088,59106.0,59105.0,0.0028998]
[1725132495580,2.96991088,59106.0,59105.0,8e-07]
[1725132495581,2.63153588,59106.0,59105.0,8e-07]
[1725132495796,2.48556888,59106.0,59105.0,8e-07]
[1725132496228,2.82394388,59106.0,59105.0,8e-07]
[1725132498002,2.8504973,59106.0,59105.0,8e-07]
[1725132501281,2.8504973,59106.0,59105.0,6e-07]
[1725132503167,2.8484973,59106.0,59105.0,6e-07]
[1725132503608,2.8504973,59106.0,59105.0,6e-07]
[1725132505780,2.8604973,59106.0,59105.0,6e-07]
[1725132506138,2.206548,59103.0,59102.0,4e-07]
[1725132506341,2.67573013,59103.0,59102.0,4e-07]
[1725132507210,2.67773013,59103.0,59102.0,4e-07]
[1725132508595,2.68273013,59103.0,59102.0,4e-07]
[1725132509711,2.69968031,59103.0,59102.0,4e-07]
[1725132511832,3.20727031,59103.0,59102.0,4e-07]
[1725132514349,3.28308544,59103.0,59102.0,4e-07]
[1725132515240,3.20727031,59103.0,59102.0,4e-07]
[1725132515914,3.09163982,59103.0,59102.0,4e-07]
[1725132516129,3.20727031,59103.0,59102.0,4e-07]
[1725132517785,3.27518531,59103.0,59102.0,4e-07]
[1725132519667,3.28304906,59103.0,59102.0,4e-07]
[1725132519885,3.33020738,59103.0,59102.0,4e-07]
[1725132520772,1.692215,59094.0,59092.0,0.0652]
[1725132521013,0.30785449,59093.0,59092.0,0.0652]
[1725132521240,2.06546168,59093.0,59092.0,0.0652]
[1725132521475,2.06546168,59093.0,59087.0,0.0008998]
[1725132521476,0.507717,59088.0,59087.0,0.0660998]
[1725132521705,1.89365697,59088.0,59087.0,0.0660998]
[1725132521932,1.82310954,59088.0,59087.0,0.0660998]
[1725132522160,2.16158754,59088.0,59087.0,0.0660998]
[1725132522868,2.16658754,59088.0,59087.0,0.0660998]
[1725132523550,2.26791891,59088.0,59087.0,0.0660998]
[1725132524425,2.30877481,59088.0,59087.0,0.1414998]
[1725132525503,2.38473084,59088.0,59087.0,0.1414998]
[1725132525948,2.40584855,59088.0,59087.0,0.1414998]
[1725132526582,2.32989252,59088.0,59087.0,0.1414998]
[1725132528067,2.30333574,59088.0,59087.0,0.1414998]
[1725132531404,2.3298921,59088.0,59087.0,0.1414998]
[1725132536724,2.3298921,59088.0,59087.0,0.0660998]
[1725132538062,2.30333574,59088.0,59087.0,0.0660998]
[1725132541345,2.32989213,59088.0,59087.0,0.0660998]
[1725132548042,2.30333574,59088.0,59087.0,0.0660998]
[1725132551266,2.32989188,59088.0,59087.0,0.0660998]
[1725132552357,2.32204534,59088.0,59087.0,0.0660998]
[1725132554179,2.2954892,59088.0,59087.0,0.0660998]
[1725132557436,2.32204528,59088.0,59087.0,0.0660998]
[1725132558085,2.35427219,59088.0,59087.0,0.0660998]
[1725132558836,1.96056728,59088.0,59087.0,0.0660998]
[1725132559073,1.84493679,59088.0,59087.0,0.1428998]
[1725132559292,1.81838071,59088.0,59087.0,0.1478998]
[1725132559928,1.9320112,59088.0,59087.0,0.1478998]
[1725132560135,1.9290112,59088.0,59087.0,0.1478998]
[1725132561014,1.9290112,59088.0,59087.0,0.1428998]
[1725132561864,2.00491422,59088.0,59087.0,0.1428998]
[1725132562066,2.0314692,59088.0,59087.0,0.1428998]
[1725132563477,1.95556618,59088.0,59087.0,0.1428998]
[1725132564033,1.95556618,59088.0,59087.0,0.1478998]
[1725132566441,2.08207122,59088.0,59087.0,0.1478998]
[1725132567419,1.95556618,59088.0,59087.0,0.1478998]
[1725132567978,1.9290112,59088.0,59087.0,0.1478998]
[1725132568180,1.9290112,59088.0,59087.0,0.1428998]
[1725132568440,1.9290112,59088.0,59087.0,0.1478998]
[1725132569087,1.81338071,59088.0,59087.0,0.1478998]
[1725132569315,1.94025971,59088.0,59087.0,0.1478998]
[1725132570346,1.84025971,59088.0,59087.0,0.1478998]
[1725132571197,1.86681422,59088.0,59087.0,0.1478998]
[1725132573389,1.96681422,59088.0,59087.0,0.1478998]
[1725132575169,1.96681422,59088.0,59087.0,0.1428998]
[1725132575602,1.96681422,59088.0,59087.0,0.1438998]
[1725132576244,1.96681422,59088.0,59087.0,0.1498998]
[1725132576625,1.96681422,59088.0,59087.0,0.1448998]
[1725132577912,1.94025971,59088.0,59087.0,0.1448998]
[1725132578928,1.94025971,59088.0,59087.0,0.1498998]
[1725132579102,1.94025971,59088.0,59087.0,0.1448998]
[1725132579518,1.94025971,59088.0,59087.0,0.1498998]
[1725132579753,1.94025971,59088.0,59087.0,0.1448998]
[1725132581392,2.30529257,59088.0,59087.0,0.1448998]
[1725132582429,2.30529257,59088.0,59087.0,0.1438998]
[1725132582834,2.30829257,59088.0,59087.0,0.1438998]
[1725132583035,2.30829257,59088.0,59087.0,0.1428998]
[1725132583168,2.31129257,59088.0,59087.0,0.1428998]
[1725132584006,2.31128196,59088.0,59087.0,0.1428998]
[1725132584407,2.30828196,59088.0,59087.0,0.1428998]
[1725132584607,2.31128196,59088.0,59087.0,0.1428998]
[1725132585143,2.03233159,59088.0,59087.0,0.1428998]
[1725132585343,2.20157059,59088.0,59087.0,0.1428998]
[1725132587959,2.17501573,59088.0,59087.0,0.1428998]
[1725132588841,2.1750158,59088.0,59087.0,0.1428998]
[1725132589205,1.89896342,59088.0,59087.0,0.1428998]
[1725132589422,1.79746804,59088.0,59087.0,0.1428998]
[1725132589609,1.79746804,59088.0,59087.0,0.0008998]
[1725132589817,2.13594604,59088.0,59087.0,0.0008998]
[1725132591485,2.18550186,59088.0,59087.0,0.0008998]
[1725132592994,2.28699724,59088.0,59087.0,0.0008998]
[1725132593556,2.28701735,59088.0,59087.0,0.0008998]
[1725132595414,2.28701993,59088.0,59087.0,0.0008998]
[1725132597946,2.26046411,59088.0,59087.0,0.0008998]
[1725132598149,2.15690908,59088.0,59087.0,0.0008998]
[1725132601574,2.18346534,59088.0,59087.0,0.0008998]
[1725132603929,2.35201698,59088.0,59087.0,0.0008998]
[1725132604168,2.18346534,59088.0,59087.0,0.0008998]
[1725132605865,2.63310166,59088.0,59087.0,0.0008998]
[1725132606043,2.63310166,59088.0,59087.0,8e-07]
[1725132606044,2.71330166,59088.0,59087.0,8e-07]
[1725132606201,2.73101715,59088.0,59087.0,8e-07]
[1725132606621,2.89956879,59088.0,59087.0,8e-07]
[1725132606804,3.23504679,59088.0,59087.0,8e-07]
[1725132607042,3.23904679,59088.0,59087.0,8e-07]